bitfinex/quotes_SOLUSD_20250310
["timestamp","ask_amount","ask_price","bid_price","bid_amount"]
[1741648548179,8.46,119.4,119.36,59.57177501]
[1741648548380,8.46,119.4,119.37,59.57177501]
[1741648548576,48.03177501,119.4,119.38,8.3766]
[1741648548778,39.57177501,119.39,119.34,20.9484]
[1741648548978,39.57177501,119.39,119.35,39.57177501]
[1741648549176,48.03177501,119.4,119.36,39.57177501]
[1741648550077,48.03177501,119.4,119.35,39.57177501]
[1741648550590,39.57177501,119.39,119.36,8.378]
[1741648550772,39.57177501,119.38,119.36,8.378]
[1741648550974,39.57177501,119.37,119.33,8.3801]
[1741648551269,56.40697501,119.4,119.33,8.3801]
[1741648551270,39.57177501,119.36,119.33,8.3801]
[1741648551481,8.52,119.35,119.33,8.3801]
[1741648552291,269.91177501,119.38,119.34,39.57177501]
[1741648552495,39.57177501,119.37,119.33,29.3304]
[1741648552697,39.57177501,119.36,119.33,29.3304]
[1741648552871,39.57177501,119.34,119.33,8.3801]
[1741648553180,39.57177501,119.36,119.33,8.4101]
[1741648553385,39.57177501,119.37,119.33,68.93217501]
[1741648553898,269.91177501,119.38,119.34,39.57177501]
[1741648554390,221.82,119.38,119.35,39.57177501]
[1741648554566,48.17177501,119.42,119.37,39.57177501]
[1741648554771,48.17177501,119.42,119.38,39.57177501]
[1741648555602,39.57177501,119.4,119.36,68.89477501]
[1741648555790,39.57177501,119.39,119.36,29.323]
[1741648556489,39.57177501,119.4,119.36,68.89477501]
[1741648556693,8.6,119.42,119.36,68.89477501]
[1741648556995,39.57177501,119.38,119.36,8.378]
[1741648557388,8.6,119.37,119.36,8.378]
[1741648557885,8.6,119.37,119.35,8.3787]
[1741648558092,39.57177501,119.36,119.34,8.3792]
[1741648558502,39.57177501,119.35,119.33,0.03]
[1741648558980,39.57177501,119.34,119.33,0.03]
[1741648560998,39.85609815,119.34,119.33,0.03]
[1741648561208,79.42787316,119.34,119.33,0.03]
[1741648561401,39.85609815,119.34,119.33,0.03]
[1741648562201,101.16097316,119.34,119.33,0.03]
[1741648562383,0.28432314,119.33,119.32,0.03]
[1741648562591,81.8,119.32,119.24,29.3523]
[1741648562784,39.57177501,119.27,119.24,8.3864]
[1741648563093,8.62,119.26,119.24,8.3864]
[1741648563288,39.57177501,119.25,119.23,8.3868]
[1741648563679,39.57177501,119.25,119.23,7.8868]
[1741648563984,8.62,119.26,119.23,47.45857501]
[1741648564190,8.62,119.26,119.23,68.42637501]
[1741648564590,8.62,119.26,119.24,39.57177501]
[1741648565093,8.62,119.26,119.23,68.42637501]
[1741648565297,8.62,119.26,119.24,39.57177501]
[1741648565714,8.62,119.26,119.23,68.42637501]
[1741648565881,0.14216157,119.32,119.25,39.57177501]
[1741648566085,39.57177501,119.32,119.28,39.57177501]
[1741648566294,39.57177501,119.31,119.27,39.57177501]
[1741648566615,39.57177501,119.29,119.25,68.92177501]
[1741648566782,39.57177501,119.28,119.25,29.35]
[1741648567122,8.68,119.28,119.25,68.92177501]
[1741648567288,8.68,119.28,119.26,39.57177501]
[1741648567486,8.68,119.28,119.27,39.57177501]
[1741648567881,8.68,119.28,119.27,20.0]
[1741648568198,8.68,119.28,119.26,39.57177501]
[1741648568416,8.68,119.28,119.26,8.385]
[1741648568603,39.57177501,119.27,119.24,8.3864]
[1741648568910,39.57177501,119.25,119.22,8.3878]
[1741648569087,39.57177501,119.24,119.22,8.3878]
[1741648569282,8.7,119.23,119.22,8.3878]
[1741648569486,8.7,119.24,119.22,8.3878]
[1741648570101,8.7,119.24,119.23,39.57177501]
[1741648570404,48.27177501,119.27,119.23,68.92667501]
[1741648570601,39.57177501,119.26,119.23,29.3549]
[1741648570905,48.29177501,119.3,119.25,39.57177501]
[1741648571111,39.57177501,119.29,119.25,39.57177501]
[1741648571301,48.29177501,119.3,119.25,39.57177501]
[1741648571495,48.29177501,119.3,119.26,39.57177501]
[1741648571682,39.57177501,119.27,119.23,29.3549]
[1741648572107,39.57177501,119.28,119.23,68.92667501]
[1741648572313,39.57177501,119.25,119.23,8.3871]
[1741648572482,48.33177501,119.24,119.22,8.3875]
[1741648572683,8.76,119.23,119.22,8.3875]
[1741648572907,8.76,119.23,119.21,8.4182]
[1741648573212,48.33177501,119.23,119.21,8.4182]
[1741648574018,39.57177501,119.22,119.21,0.03]
[1741648574712,39.85609815,119.22,119.21,0.03]
[1741648574910,79.42787316,119.22,119.21,0.03]
[1741648575213,161.22787316,119.22,119.21,0.03]
[1741648575384,44.12429815,119.2,119.19,0.25133366]
[1741648575685,0.14216157,119.17,119.16,0.20106693]
[1741648575883,231.14432314,119.17,119.16,0.20106693]
[1741648576289,290.44128892,119.17,119.16,0.20106693]
[1741648576688,230.86,119.17,119.16,8.59306693]
[1741648577286,290.72561206,119.17,119.16,0.20106693]
[1741648577486,290.72561206,119.17,119.13,0.18096023]
[1741648577487,20.28432314,119.14,119.13,0.18096023]
[1741648577809,20.28432314,119.13,119.12,0.14476819]
[1741648577980,79.72345049,119.13,119.12,0.14476819]
[1741648578385,79.72345049,119.13,119.08,0.14476819]
[1741648578386,0.14216157,119.09,119.04,0.03]
[1741648578615,95.74216157,119.12,119.04,0.34769795]
[1741648578616,59.58128892,119.05,119.04,0.34769795]
[1741648578815,8.82,119.05,119.04,0.34769795]
[1741648578991,8.82,119.05,119.04,8.4002]
[1741648579323,222.14,119.08,119.04,88.98278892]
[1741648579494,222.14,119.08,119.04,29.4015]
[1741648579699,222.14,119.08,119.05,59.58128892]
[1741648580014,222.14,119.08,119.04,29.4015]
[1741648580202,222.14,119.08,119.05,59.58128892]
[1741648580989,59.58128892,119.1,119.06,59.58128892]
[1741648581212,59.58128892,119.12,119.08,59.58128892]
[1741648581396,68.44128892,119.13,119.08,59.58128892]
[1741648581595,222.22,119.15,119.1,59.58128892]
[1741648581798,281.80128892,119.15,119.11,59.58128892]
[1741648581998,59.58128892,119.14,119.09,59.58128892]
[1741648582199,281.80128892,119.15,119.11,59.58128892]
[1741648582499,281.80128892,119.15,119.12,29.382]
[1741648582707,222.22,119.15,119.12,8.3948]
[1741648582904,222.22,119.15,119.1,8.3963]
[1741648582905,59.58128892,119.13,119.1,8.3963]
[1741648583208,59.58128892,119.13,119.1,29.387]
[1741648583429,222.22,119.15,119.1,29.387]
[1741648583430,59.58128892,119.12,119.1,29.387]
[1741648583584,59.58128892,119.11,119.1,8.3963]
[1741648583789,59.58128892,119.11,119.08,8.3977]
[1741648584015,59.58128892,119.1,119.08,8.3977]
[1741648584311,59.58128892,119.11,119.08,8.3977]
[1741648584619,8.98,119.13,119.09,59.58128892]
[1741648584828,59.58128892,119.12,119.07,71.3849]
[1741648585129,281.80128892,119.15,119.11,59.58128892]
[1741648585425,281.80128892,119.15,119.12,59.58128892]
[1741648585426,222.22,119.15,119.12,59.58128892]
[1741648586024,59.58128892,119.2,119.14,59.58128892]
[1741648586235,290.86128892,119.21,119.17,59.58128892]
[1741648586412,59.58128892,119.19,119.15,59.58128892]
[1741648586724,59.58128892,119.2,119.16,88.95338892]
[1741648586936,290.86128892,119.21,119.17,59.58128892]
[1741648587107,59.58128892,119.2,119.16,88.95338892]
[1741648587508,290.86128892,119.21,119.16,88.95338892]
[1741648587732,59.58128892,119.22,119.18,59.58128892]
[1741648587907,59.58128892,119.22,119.17,59.58128892]
[1741648588229,59.58128892,119.22,119.18,59.58128892]
[1741648588477,59.58128892,119.21,119.16,88.95338892]
[1741648588622,59.58128892,119.21,119.17,59.58128892]
[1741648588810,81.8,119.23,119.18,59.58128892]
[1741648589126,59.58128892,119.22,119.18,59.58128892]
[1741648589539,59.58128892,119.22,119.17,59.58128892]
[1741648589831,59.58128892,119.23,119.19,59.58128892]
[1741648590041,59.58128892,119.21,119.17,59.58128892]
[1741648590424,59.58128892,119.22,119.18,59.58128892]
[1741648590728,59.58128892,119.21,119.19,8.3899]
[1741648591304,59.58128892,119.21,119.18,8.3904]
[1741648591734,59.58128892,119.22,119.18,88.94828892]
[1741648591932,59.58128892,119.23,119.18,88.94828892]
[1741648592129,59.58128892,119.22,119.18,88.94828892]
[1741648592337,8.98,119.22,119.2,59.58128892]
[1741648592526,8.98,119.22,119.19,59.58128892]
[1741648592718,8.98,119.22,119.2,59.58128892]
[1741648592921,8.98,119.22,119.21,8.3885]
[1741648593336,231.6237,119.28,119.21,88.94108892]
[1741648593519,59.58128892,119.25,119.21,29.3598]
[1741648593721,59.58128892,119.25,119.21,88.94108892]
[1741648594330,59.58128892,119.24,119.21,8.3885]
[1741648594923,59.58128892,119.25,119.21,67.96978892]
[1741648595122,59.58128892,119.23,119.21,8.3885]
[1741648595336,59.58128892,119.25,119.21,67.96978892]
[1741648595640,59.58128892,119.23,119.21,8.3885]
[1741648595958,68.56128892,119.22,119.2,8.94685419]
[1741648596928,59.58128892,119.21,119.2,0.55785419]
[1741648597824,68.56128892,119.22,119.2,8.94705419]
[1741648598341,59.58128892,119.21,119.2,0.55785419]
[1741648598837,59.58128892,119.21,119.2,8.94705419]
[1741648599048,68.56128892,119.22,119.2,8.94705419]
[1741648599621,68.56128892,119.22,119.2,0.55785419]
[1741648599622,59.58128892,119.21,119.2,0.55785419]
[1741648599937,68.62428892,119.22,119.2,8.94705419]
[1741648600325,9.043,119.22,119.2,8.94705419]
[1741648600526,0.063,119.22,119.2,68.52834311]
[1741648601148,0.0001,119.22,119.21,59.58128892]
[1741648601336,59.58128892,119.26,119.21,59.58128892]
[1741648601643,8.96,119.25,119.22,59.58128892]
[1741648602148,68.54128892,119.25,119.21,59.58128892]
[1741648602323,59.58128892,119.24,119.2,89.50144311]
[1741648602841,68.54128892,119.24,119.2,89.50144311]
[1741648603042,59.58128892,119.24,119.2,89.50144311]
[1741648603251,8.94,119.24,119.21,59.58128892]
[1741648603422,8.94,119.24,119.22,59.58128892]
[1741648603618,68.52128892,119.24,119.2,89.50144311]
[1741648604122,68.52128892,119.24,119.2,29.92015419]
[1741648604447,39.66625075,119.23,119.2,29.92015419]
[1741648605342,48.60625075,119.24,119.2,69.58640494]
[1741648605746,39.66625075,119.23,119.2,29.92015419]
[1741648606849,8.94,119.24,119.2,69.58640494]
[1741648606850,48.60625075,119.24,119.2,69.58640494]
[1741648607147,39.66625075,119.25,119.21,39.66625075]
[1741648607325,39.66625075,119.25,119.22,29.3574]
[1741648607524,39.66625075,119.23,119.22,8.3878]
[1741648608251,39.66625075,119.25,119.22,29.3574]
[1741648608629,48.58625075,119.26,119.22,69.02365075]
[1741648608953,39.66625075,119.24,119.22,8.3878]
[1741648609256,48.58625075,119.26,119.22,39.66625075]
[1741648609452,48.58625075,119.26,119.21,69.02605075]
[1741648609657,39.66625075,119.25,119.21,69.02605075]
[1741648609952,39.66625075,119.24,119.21,29.3598]
[1741648611047,8.92,119.26,119.21,29.3598]
[1741648611048,39.66625075,119.23,119.21,29.3598]
[1741648611752,39.66625075,119.23,119.21,8.3885]
[1741648611949,39.66625075,119.22,119.21,8.3885]
[1741648612140,39.66625075,119.22,119.2,8.94675419]
[1741648612351,48.54625075,119.21,119.2,8.94675419]
[1741648612931,48.54625075,119.21,119.2,0.55785419]
[1741648613637,66.30715075,119.21,119.2,0.55785419]
[1741648614153,57.91865075,119.21,119.2,0.55785419]
[1741648615332,48.54625075,119.21,119.2,0.55785419]
[1741648616734,57.21907389,119.21,119.13,30.3845]
[1741648616950,39.66625075,119.17,119.13,70.05075075]
[1741648617248,39.66625075,119.17,119.13,60.68125075]
[1741648617448,8.84,119.16,119.13,60.68125075]
[1741648617660,8.84,119.16,119.14,8.3934]
[1741648617842,44.14497859,119.16,119.14,8.3934]
[1741648618027,8.84,119.16,119.14,8.3934]
[1741648618232,8.84,119.16,119.14,43.69837859]
[1741648619135,266.32497859,119.19,119.14,64.68207859]
[1741648619660,266.32497859,119.19,119.15,35.30497859]
[1741648619869,231.02,119.19,119.16,35.30497859]
[1741648620234,35.30497859,119.2,119.18,20.0]
[1741648620450,35.30497859,119.2,119.16,35.30497859]
[1741648620451,257.48497859,119.23,119.19,35.30497859]
[1741648620643,222.18,119.23,119.2,35.30497859]
[1741648620854,257.48497859,119.23,119.19,35.30497859]
[1741648621255,257.48497859,119.23,119.18,39.80597859]
[1741648621456,8.86,119.22,119.2,64.66727859]
[1741648621758,8.86,119.22,119.2,29.3623]
[1741648622055,35.30497859,119.21,119.2,8.3892]
[1741648622456,0.063,119.24,119.2,64.66727859]
[1741648622670,0.063,119.24,119.21,35.30497859]
[1741648623248,0.063,119.24,119.22,35.30497859]
[1741648623641,0.0001,119.24,119.23,35.30497859]
[1741648623955,0.0001,119.24,119.22,20.0]
[1741648624267,0.0001,119.24,119.21,4.3205]
[1741648624442,35.30497859,119.23,119.19,106.61957859]
[1741648624762,35.30507859,119.24,119.2,35.30497859]
[1741648624938,0.0001,119.24,119.22,55.30497859]
[1741648625138,0.0001,119.24,119.23,35.30497859]
[1741648625649,0.0001,119.24,119.23,43.69207859]
[1741648626057,0.0001,119.24,119.23,52.22717859]
[1741648626250,0.0001,119.24,119.23,8.3871]
[1741648626459,0.0001,119.25,119.23,43.69207859]
[1741648626660,0.0001,119.25,119.24,35.30497859]
[1741648626870,0.0001,119.25,119.24,35.58930173]
[1741648627165,0.0001,119.25,119.24,35.30497859]
[1741648627467,0.0001,119.25,119.23,43.69207859]
[1741648627760,0.0001,119.25,119.24,35.30497859]
[1741648628139,0.0001,119.25,119.24,40.18590173]
[1741648628364,0.063,119.33,119.27,20.0]
[1741648628564,0.063,119.33,119.3,35.30497859]
[1741648628747,35.30497859,119.32,119.28,35.30497859]
[1741648628943,35.36797859,119.33,119.29,35.30497859]
[1741648629339,0.063,119.33,119.29,35.30497859]
[1741648629753,0.063,119.33,119.3,35.30497859]
[1741648629968,35.36797859,119.33,119.29,35.30497859]
[1741648630364,0.063,119.33,119.31,35.30497859]
[1741648630552,0.063,119.34,119.32,35.30497859]
[1741648630750,35.36797859,119.34,119.3,35.30497859]
[1741648631150,35.30497859,119.33,119.29,35.30497859]
[1741648631354,35.36797859,119.34,119.29,35.30497859]
[1741648631667,35.30497859,119.33,119.29,35.30497859]
[1741648631839,35.30497859,119.33,119.3,8.3822]
[1741648632172,35.30497859,119.31,119.26,35.30497859]
[1741648632373,35.30497859,119.29,119.27,8.3843]
[1741648632665,35.30497859,119.28,119.27,8.3843]
[1741648632869,35.30497859,119.29,119.27,8.3843]
[1741648633166,44.28497859,119.32,119.27,64.65007859]
[1741648633369,44.28497859,119.32,119.29,1.0]
[1741648633560,8.98,119.32,119.3,35.30497859]
[1741648633760,0.063,119.34,119.31,43.68647859]
[1741648634072,0.063,119.34,119.32,35.30497859]
[1741648634238,0.063,119.34,119.31,64.64027859]
[1741648634662,35.36797859,119.34,119.31,29.3353]
[1741648634868,35.36797859,119.34,119.31,8.3815]
[1741648635165,35.30497859,119.33,119.31,8.3815]
[1741648635366,0.063,119.34,119.31,8.3815]
[1741648635367,35.30497859,119.32,119.31,8.3815]
[1741648635558,35.30497859,119.32,119.29,1.0]
[1741648635763,35.30497859,119.3,119.29,1.0]
[1741648635960,44.28497859,119.3,119.29,1.0]
[1741648636153,44.56930173,119.3,119.29,1.0]
[1741648636344,79.87428032,119.3,119.29,1.0]
[1741648636547,44.28497859,119.3,119.29,1.0]
[1741648636873,52.95150173,119.3,119.29,1.0]
[1741648637173,82.08432314,119.29,119.21,8.3885]
[1741648637379,35.30497859,119.23,119.21,8.3885]
[1741648637541,44.30497859,119.23,119.21,8.3885]
[1741648637741,9.0,119.23,119.21,8.3885]
[1741648637969,44.30497859,119.23,119.21,8.3885]
[1741648638347,61.88891367,119.23,119.21,8.3885]
[1741648638568,52.88891367,119.22,119.21,8.3885]
[1741648638777,52.88891367,119.22,119.2,8.4191]
[1741648639150,61.88891367,119.23,119.2,8.4191]
[1741648639357,61.88891367,119.23,119.2,29.3922]
[1741648639570,9.0,119.23,119.2,29.3922]
[1741648640075,52.95191367,119.27,119.22,52.88891367]
[1741648640370,52.95191367,119.27,119.23,72.88891367]
[1741648640678,222.02,119.28,119.26,52.88891367]
[1741648641070,52.88891367,119.32,119.27,52.88891367]
[1741648641373,226.5238,119.34,119.29,52.88891367]
[1741648641374,61.88891367,119.33,119.29,52.88891367]
[1741648641583,222.123,119.34,119.3,52.88891367]
[1741648641754,222.123,119.34,119.31,52.88891367]
[1741648642070,222.123,119.34,119.33,20.0]
[1741648642775,275.01191367,119.34,119.29,90.60701367]
[1741648643066,52.88891367,119.31,119.29,8.3829]
[1741648643250,52.88891367,119.3,119.29,8.3829]
[1741648643467,61.88891367,119.3,119.29,8.3829]
[1741648644054,61.88891367,119.3,119.27,29.3451]
[1741648644476,61.88891367,119.3,119.29,20.0]
[1741648644477,9.0,119.3,119.29,20.0]
[1741648644666,231.0391,119.34,119.29,52.88891367]
[1741648644850,52.88891367,119.33,119.28,52.88891367]
[1741648645266,52.88891367,119.32,119.27,82.23401367]
[1741648645469,52.88891367,119.31,119.27,29.3451]
[1741648645675,52.88891367,119.32,119.28,52.88891367]
[1741648645969,275.01191367,119.34,119.29,53.17323681]
[1741648646176,52.88891367,119.32,119.31,8.3815]
[1741648646383,52.88891367,119.32,119.28,8.3836]
[1741648646554,52.88891367,119.31,119.28,8.3836]
[1741648646755,52.88891367,119.32,119.28,8.3836]
[1741648646970,52.88891367,119.32,119.28,82.23151367]
[1741648647277,52.88891367,119.33,119.29,52.88891367]
[1741648647475,284.01191367,119.34,119.29,52.88891367]
[1741648647987,0.063,119.36,119.33,20.0]
[1741648648152,0.0001,119.36,119.34,52.88891367]
[1741648648363,0.0001,119.36,119.35,72.88891367]
[1741648649874,222.02,119.4,119.36,0.28432314]
[1741648650051,222.02,119.4,119.37,72.88891367]
[1741648650254,0.063,119.41,119.39,52.88891367]
[1741648650553,0.063,119.41,119.4,72.88891367]
[1741648650755,0.063,119.41,119.4,20.0]
[1741648652376,0.063,119.41,119.4,28.3752]
[1741648652778,52.78323558,119.41,119.35,102.8454]
[1741648652955,52.72023558,119.4,119.36,8.378]
[1741648653155,52.72023558,119.4,119.36,82.04323558]
[1741648653364,52.78323558,119.41,119.36,82.04323558]
[1741648653566,52.72023558,119.4,119.36,82.04323558]
[1741648653778,0.063,119.41,119.37,52.72023558]
[1741648654082,0.063,119.41,119.38,52.72023558]
[1741648654257,0.063,119.41,119.39,8.3759]
[1741648654976,0.063,119.41,119.39,61.09613558]
[1741648655676,0.0001,119.41,119.39,61.07929818]
[1741648655880,0.0001,119.41,119.39,8.3759]
[1741648656260,0.0001,119.41,119.39,61.07929818]
[1741648656482,52.76639818,119.44,119.43,20.0]
[1741648656483,0.0001,119.44,119.43,20.0]
[1741648657063,0.0001,119.44,119.43,72.98772132]
[1741648657263,52.70349818,119.44,119.43,20.0]
[1741648657464,52.70349818,119.44,119.42,20.0]
[1741648657674,52.70339818,119.43,119.42,20.0]
[1741648657858,52.70339818,119.43,119.39,29.3156]
[1741648658185,52.70339818,119.42,119.39,29.3156]
[1741648658670,52.70339818,119.42,119.39,8.3759]
[1741648658874,52.70339818,119.41,119.39,8.3759]
[1741648659469,52.70339818,119.42,119.39,8.3759]
[1741648659678,9.0201,119.44,119.39,61.07929818]
[1741648659679,61.72349818,119.44,119.39,61.07929818]
[1741648659884,52.70339818,119.43,119.39,82.01899818]
[1741648660083,52.70339818,119.42,119.39,8.3759]
[1741648660362,35.15296226,119.41,119.4,20.0]
[1741648660580,35.15296226,119.42,119.4,20.0]
[1741648660968,35.15296226,119.41,119.35,8.3787]
[1741648661194,35.15296226,119.37,119.35,8.3787]
[1741648661365,35.15296226,119.37,119.36,20.0]
[1741648661679,35.15296226,119.37,119.33,8.3801]
[1741648661991,35.15296226,119.37,119.33,29.3304]
[1741648662188,35.15296226,119.36,119.33,29.3304]
[1741648662488,35.15296226,119.36,119.32,8.3808]
[1741648662790,35.15296226,119.36,119.32,43.53376226]
[1741648662990,35.15296226,119.36,119.32,8.3808]
[1741648663162,35.15296226,119.35,119.34,20.0]
[1741648663363,35.15296226,119.36,119.34,20.0]
[1741648664606,35.15296226,119.36,119.34,28.3793]
[1741648664767,35.15296226,119.35,119.32,8.3808]
[1741648665168,35.15296226,119.36,119.32,64.48576226]
[1741648665371,35.15296226,119.37,119.33,35.15296226]
[1741648665695,35.15296226,119.36,119.32,64.48576226]
[1741648666007,35.15296226,119.35,119.32,8.3808]
[1741648666498,35.15296226,119.35,119.31,29.3338]
[1741648666676,35.15296226,119.34,119.33,20.0]
[1741648667188,35.15296226,119.35,119.33,20.0]
[1741648667568,35.15296226,119.36,119.33,20.0]
[1741648667789,35.15296226,119.35,119.33,20.0]
[1741648668500,35.15296226,119.36,119.33,20.0]
[1741648668697,35.15296226,119.35,119.34,8.3794]
[1741648668900,8.8411,119.39,119.34,29.3279]
[1741648669193,257.03296226,119.41,119.38,20.0]
[1741648669376,221.88,119.41,119.38,55.15296226]
[1741648669776,221.88,119.41,119.38,20.0]
[1741648670393,221.88,119.41,119.4,20.0]
[1741648670597,257.03296226,119.41,119.38,8.3766]
[1741648670777,35.15296226,119.4,119.38,28.3766]
[1741648670977,257.03296226,119.41,119.38,49.3181]
[1741648671367,221.88,119.41,119.38,49.3181]
[1741648671574,35.15296226,119.4,119.38,28.3766]
[1741648671989,257.03296226,119.41,119.38,49.3181]
[1741648672175,257.03296226,119.41,119.38,28.3766]
[1741648672380,0.0001,119.44,119.43,20.0]
[1741648672604,0.0001,119.44,119.43,28.3731]
[1741648672780,0.0001,119.44,119.43,8.3731]
[1741648672993,35.15306226,119.44,119.4,8.3752]
[1741648673294,35.15296226,119.41,119.4,8.3752]
[1741648673794,44.15296226,119.41,119.36,29.3214]
[1741648674103,35.15296226,119.4,119.36,29.3214]
[1741648674283,35.15296226,119.4,119.36,64.47436226]
[1741648674484,35.15296226,119.4,119.36,29.3214]
[1741648674687,35.15296226,119.39,119.38,20.0]
[1741648674901,35.15296226,119.4,119.38,20.0]
[1741648675079,44.15296226,119.41,119.38,20.0]
[1741648675278,9.0,119.43,119.39,35.15296226]
[1741648675481,35.21596226,119.41,119.4,20.0]
[1741648675874,0.063,119.41,119.4,20.0]
[1741648676599,35.21596226,119.41,119.39,20.0]
[1741648676902,0.063,119.41,119.39,28.3759]
[1741648677901,35.21596226,119.41,119.39,28.3759]
[1741648678101,35.15296226,119.4,119.39,28.3759]
[1741648678302,35.15296226,119.4,119.39,8.3759]
[1741648678601,35.15296226,119.4,119.37,0.03]
[1741648678781,35.15296226,119.38,119.37,0.03]
[1741648678984,8.631,119.41,119.37,20.03]
[1741648679186,44.19296226,119.4,119.37,20.03]
[1741648679588,9.04,119.4,119.37,55.18296226]
[1741648679777,9.04,119.4,119.38,55.15296226]
[1741648679974,0.063,119.41,119.38,55.15296226]
[1741648680904,0.063,119.41,119.39,8.3759]
[1741648681310,35.15306226,119.44,119.4,35.15296226]
[1741648681500,0.0001,119.44,119.42,20.0]
[1741648681686,35.15296226,119.43,119.42,20.0]
[1741648681886,35.15296226,119.43,119.39,29.3156]
[1741648682206,35.15296226,119.4,119.39,8.3759]
[1741648682379,9.04,119.4,119.39,8.3759]
[1741648682574,35.15296226,119.43,119.39,29.3156]
[1741648682803,35.15296226,119.43,119.39,64.46856226]
[1741648683001,0.0001,119.44,119.39,8.3759]
[1741648683308,35.15296226,119.41,119.39,8.3759]
[1741648683598,35.15296226,119.4,119.39,8.3759]
[1741648683801,44.19296226,119.41,119.39,8.3759]
[1741648684306,35.15296226,119.4,119.39,8.3759]
[1741648684497,44.19296226,119.41,119.39,8.3759]
[1741648684692,35.15296226,119.4,119.39,20.0]
[1741648684892,44.19296226,119.41,119.39,20.0]
[1741648685983,35.15296226,119.4,119.39,20.0]
[1741648686797,35.15296226,119.4,119.39,28.3759]
[1741648686997,9.04,119.41,119.39,28.3759]
[1741648687199,0.0001,119.44,119.4,35.4372854]
[1741648687403,0.0001,119.44,119.42,35.15296226]
[1741648687906,35.15306226,119.44,119.4,35.15296226]
[1741648688283,35.15296226,119.42,119.39,29.3156]
[1741648688602,44.19296226,119.41,119.39,8.3759]
[1741648688815,35.15296226,119.4,119.37,8.4073]
[1741648689017,9.04,119.41,119.37,8.4073]
[1741648689018,35.15296226,119.38,119.37,8.4073]
[1741648689183,35.15296226,119.38,119.37,0.03]
[1741648690413,43.7582854,119.38,119.37,0.03]
[1741648690778,50.49181937,119.38,119.37,0.03]
[1741648691112,0.28432314,119.37,119.33,0.03]
[1741648691281,70.30592452,119.34,119.33,0.03]
[1741648691678,70.59024766,119.34,119.33,0.03]
[1741648692213,0.28432314,119.31,119.27,0.03]
[1741648692509,8.8795,119.32,119.27,8.4141]
[1741648692510,35.15296226,119.28,119.27,8.4141]
[1741648692679,35.15296226,119.28,119.27,0.03]
[1741648693608,70.30592452,119.28,119.27,0.03]
[1741648694514,35.15296226,119.28,119.27,0.03]
[1741648694688,70.59024766,119.28,119.27,0.03]
[1741648694893,292.45024766,119.28,119.27,0.03]
[1741648695285,0.28432314,119.25,119.22,0.03]
[1741648695489,70.59024766,119.23,119.22,0.03]
[1741648695899,0.28432314,119.22,119.21,0.03]
[1741648696097,70.59024766,119.22,119.21,0.03]
[1741648696914,70.30592452,119.22,119.21,0.03]
[1741648697223,44.19296226,119.22,119.21,0.03]
[1741648697394,79.34592452,119.22,119.21,0.03]
[1741648697602,79.63024766,119.22,119.21,0.03]
[1741648698020,79.34592452,119.22,119.21,0.03]
[1741648698519,79.34592452,119.22,119.21,0.00735574]
[1741648698819,79.63024766,119.22,119.21,0.00735574]
[1741648699314,79.34592452,119.22,119.21,0.00735574]
[1741648699618,35.15296226,119.22,119.21,0.00735574]
[1741648699792,44.25296226,119.22,119.21,0.00735574]
[1741648700192,79.69024766,119.22,119.21,0.00735574]
[1741648700805,79.69024766,119.22,119.15,20.9816]
[1741648700806,70.30592452,119.16,119.13,0.03]
[1741648701034,35.15296226,119.14,119.13,0.03]
[1741648701222,35.4372854,119.14,119.13,0.03]
[1741648701399,257.5172854,119.14,119.13,0.03]
[1741648701995,257.23296226,119.14,119.13,0.03]
[1741648702220,257.5172854,119.14,119.13,0.03]
[1741648702521,0.28432314,119.13,119.07,8.3982]
[1741648702693,35.15296226,119.1,119.07,8.3982]
[1741648702896,9.12,119.11,119.08,35.15296226]
[1741648703125,44.27296226,119.11,119.09,8.397]
[1741648703292,9.12,119.11,119.09,8.397]
[1741648703631,222.08,119.14,119.1,35.15296226]
[1741648703921,35.15296226,119.13,119.09,29.3895]
[1741648704100,35.15296226,119.13,119.09,64.54246226]
[1741648704305,257.23296226,119.14,119.1,35.15296226]
[1741648704714,257.23296226,119.14,119.09,29.3895]